[Event "ChessKid Cup Div-II 2023"]
[Site "Online"]
[Date "2023.05.24"]
[Round "52.2"]
[White "Andreikin, Dmitry"]
[Black "Alekseenko, Kirill"]
[Result "0-1"]
[ECO "E08"]
[WhiteElo "2729"]
[BlackElo "2686"]
[Annotator "TA"]
[PlyCount "142"]
[EventDate "2023.05.21"]
[EventType "k.o."]
[EventCountry "NET"]
[SourceTitle "playchess.com"]
[Source "ChessBase"]
[SourceQuality "1"]
[TimeControl "900+3"]

{[%evp 17,141,20,37,34,31,31,49,43,50,33,41,29,35,25,27,0,0,0,0,-8,-8,-7,0,-8,-9,-12,0,0,0,0,0,0,0,-13,0,0,0,-30,0,0,0,0,0,0,0,0,0,0,0,0,0,-188,-247,-228,-248,-186,-185,-321,-300,-285,-273,-418,-24,-8,0,-941,-929,-904,-649,-1018,-1035,-994,-905,-834,-796,-1035,-1025,-1018,-1018,-995,-469,-714,-707,-469,-469,-1216,-814,-29958,-3016,-29964,-29967,-29969,-29970,-29970,-29972,-29972,-29972,-29971,-29973,-29967,-29974,-29974,-29975,-29975,-29976,-29976,-29977,-29977,-29978,-29978,-29979,-29979,-29979,-29983,-29982,-29982,-29983,-29983,0,-29984,-29985,-29989,0,-29990,0,-29991]} 1. d4 {[%emt 0:00:04]} Nf6 {[%emt 0:00:07]} 2. c4 {[%emt 0:00:01]} e6 {[%emt 0:00:02]} 3. Nf3 {[%emt 0:00:07]} d5 {[%emt 0:00:03]} 4. g3 {[%emt 0:00:14]} Bb4+ {[%emt 0:00:05]} 5. Bd2 {[%emt 0:00:02]} Be7 {[%emt 0:00:01]} 6. Bg2 {[%emt 0:00:01]} O-O {[%emt 0:00:02]} 7. O-O {[%emt 0:00:01]} Nbd7 {[%emt 0:00:01]} 8. Qc2 {[%emt 0:00:11]} c6 {[%emt 0:00:07]} 9. Bf4 {[%emt 0:00:28]} a5 {[%emt 0:00:12]} 10. Rd1 {[%emt 0:00:18] E08: Closed Catalan: Main Line: 7 Qc2.} h6 {[%emt 0:00:22]} 11. Nc3 {[%emt 0:01:05]} Nh5 $5 {[%emt 0:00:14][%mdl 4] Exploring less charted territory.} 12. Bc1 {[%emt 0:00:17] White is slightly better.} f5 {[%emt 0:00:33]} 13. Ne5 {[%emt 0:00:18]} Bd6 {[%emt 0:00:09]} 14. f4 {[%emt 0:01:20] [#]} Nhf6 $146 {[%emt 0:01:33]} ({Predecessor:} 14... Qe8 15. e3 Nhf6 16. Bd2 Ne4 17. Nxe4 fxe4 18. a3 Nxe5 19. dxe5 Be7 20. b4 a4 {1-0 Fridman,D (2637)-Lazarev,V (2488) BEL-chT 0809 2008 (6.1)}) 15. b3 {[%emt 0:00:04]} Ne4 {[%emt 0:00:10]} 16. a4 {[%emt 0:00:25]} Nxe5 {[%emt 0:00:31]} 17. fxe5 {[%emt 0:00:21][%cal Rc3e4] Nxe4 would be deadly.} Bb4 {[%emt 0:00:06]} 18. Na2 {[%emt 0:00:34]} Be7 {[%emt 0:00:12]} 19. Nc3 {[%emt 0:00:02]} Bd7 {[%emt 0:00:08][%cal Bc8d7,Bd7e8,Be8g6][%mdl 32]} 20. Ba3 {[%emt 0:00:23]} Bxa3 {[%emt 0:00:16]} 21. Rxa3 {[%emt 0:00:00]} Qg5 {[%emt 0:00:25] ( -> ...Qe3+)} (21... Be8 {simplifies} 22. Nxe4 dxe4 23. Qc3 h5) 22. Qc1 {[%emt 0:00:05] Against Qe3+} Nxc3 {[%emt 0:01:40]} 23. Qxc3 {[%emt 0:00:00]} f4 {[%emt 0:00:00]} 24. Raa1 {[%emt 0:00:10]} Be8 {[%emt 0:00:33]} 25. Rf1 {[%emt 0:00:25]} (25. Bh3 $5 {[%cal Rh3e6]}) 25... Bg6 {[%emt 0:00:10]} 26. Bh3 {[%emt 0:02:09]} Rae8 {[%emt 0:00:03]} 27. Qd2 {[%emt 0:00:16][%cal Rf1f4]} fxg3 {[%emt 0:00:43]} (27... Qh5 {looks sharper.} 28. Bg2 fxg3 29. hxg3 Qg4) 28. Qxg5 {[%emt 0:00:00]} gxh2+ {[%emt 0:00:02]} 29. Kxh2 {[%emt 0:00:01]} hxg5 {[%emt 0:00:00]} 30. cxd5 {[%emt 0:00:28] Hoping for Rxf8+.} exd5 {[%emt 0:01:08]} 31. Kg3 {[%emt 0:00:01]} Bc2 {[%emt 0:00:25]} 32. Kg4 {[%emt 0:02:09]} Rxf1 {[%emt 0:01:07]} 33. Rxf1 $11 {[%emt 0:00:00][%mdl 4096] Endgame KRB-KRB} Rf8 $1 {[%emt 0:00:04] And now ...Rxf1 would win.} 34. Rc1 {[%emt 0:00:31] [#]} (34. Rh1 $1 $11) 34... Bf5+ $1 $19 {[%emt 0:00:14]} ({Resist} 34... Bxb3 35. Kxg5 Rf2 36. Rb1 Bxa4 37. Rxb7 Rxe2 38. e6 $11) 35. Kg3 {[%emt 0:00:01]} Bxh3 {[%emt 0:00:02]} 36. Kxh3 {[%emt 0:00:00] KR-KR} Rf4 {[%emt 0:00:07]} 37. e3 {[%emt 0:00:08]} (37. Rd1 {was worth a try.}) 37... Rf3+ {[%emt 0:00:30]} 38. Kg4 {[%emt 0:00:01]} Rxe3 {[%emt 0:00:00] ...Kf7 is the strong threat.} 39. Kxg5 {[%emt 0:00:45]} (39. Rf1 $142) 39... Rxb3 $2 {[%emt 0:01:17]} ({Black should play} 39... Kf7 $19 40. Rf1+ Ke6) 40. Rf1 $1 $11 {[%emt 0:01:32]} Rd3 {[%emt 0:01:09]} 41. Rb1 $2 {[%emt 0:01:03][%mdl 8192] [#] Black keeps a firm grip on the game.} (41. e6 $11 Re3 42. Kf5) 41... Kf7 $1 $19 {[%emt 0:00:08]} ({And not} 41... Rxd4 42. Rxb7 Rxa4 43. Rc7 $17) 42. Rxb7+ {[%emt 0:00:33]} Ke6 {[%emt 0:00:02]} 43. Rb8 {[%emt 0:00:07]} Rxd4 {[%emt 0:00:03]} 44. Re8+ {[%emt 0:00:01]} Kf7 {[%emt 0:00:30]} 45. Rc8 {[%emt 0:00:07]} Re4 {[%emt 0:00:51]} 46. Rxc6 {[%emt 0:00:06]} Rxe5+ {[%emt 0:00:01]} 47. Kf4 {[%emt 0:00:01]} Re4+ {[%emt 0:00:13]} 48. Kf5 {[%emt 0:00:01]} Rxa4 {[%emt 0:00:07]} 49. Rc7+ {[%emt 0:00:03]} (49. Rf6+ $142 Ke7 50. Ra6) 49... Kg8 {[%emt 0:00:01]} 50. Rd7 {[%emt 0:00:28]} Rh4 {[%emt 0:00:35]} 51. Kg5 {[%emt 0:00:04]} (51. Ra7 $142 a4 52. Ke6) 51... Rh6 {[%emt 0:00:03]} 52. Ra7 {[%emt 0:00:00] Dodges Ra6} d4 {[%emt 0:00:10]} (52... Rd6 $142 53. Rxa5 d4 54. Ra8+ Kf7 55. Ra2 d3 56. Rd2 Ke6 57. Kg4 Ke5 58. Rd1 Ke4 59. Kh4 d2 60. Kh3 Kf3 61. Kh4 Ke2 62. Rg1 d1=Q 63. Rxd1 Kxd1 64. Kg3 Rf6 65. Kg4 Ke2 66. Kg3 Ke3 67. Kg4 Kf2 68. Kh5 Kf3 69. Kg5 Kg3 70. Kh5 Kf4 71. Kh4 Rh6#) 53. Rxa5 {[%emt 0:00:03]} Rd6 {[%emt 0:00:01]} 54. Ra2 {[%emt 0:00:03]} d3 {[%emt 0:00:02]} 55. Rd2 {[%emt 0:00:00]} Kf7 {[%emt 0:00:03]} 56. Kf5 {[%emt 0:00:02]} Rd5+ {[%emt 0:00:06]} 57. Ke4 {[%emt 0:00:01]} Ke6 {[%emt 0:00:02]} 58. Ke3 {[%emt 0:00:03]} Ke5 {[%emt 0:00:09]} 59. Rg2 {[%emt 0:00:01] [#]} d2 $1 {[%emt 0:00:07]} 60. Rg5+ {[%emt 0:00:01]} Ke6 {[%emt 0:00:02]} 61. Rxd5 {[%emt 0:00:01]} Kxd5 {[%emt 0:00:00]} 62. Kxd2 {[%emt 0:00:00] KP-K} Ke4 {[%emt 0:00:09][%cal Bd5e4,Be4f4,Bf4f3,Bf3g3,Bg3h3,Bh3h2][%mdl 32]} 63. Ke2 {[%emt 0:00:01]} Kf4 {[%emt 0:00:01]} 64. Kf2 {[%emt 0:00:00]} g5 {[%emt 0:00:06][%cal Bg7g5,Bg5g4,Bg4g3,Bg3g2][%mdl 32]} 65. Kf1 {[%emt 0:00:01]} Kf3 {[%emt 0:00:02]} 66. Kg1 {[%emt 0:00:01]} Kg3 {[%emt 0:00:01]} 67. Kh1 {[%emt 0:00:01]} g4 {[%emt 0:00:08]} 68. Kg1 {[%emt 0:00:01]} Kh3 {[%emt 0:00:04]} 69. Kh1 {[%emt 0:00:10]} g3 {[%emt 0:00:01]} 70. Kg1 {[%emt 0:00:00]} g2 {[%emt 0:00:00]} 71. Kf2 {[%emt 0:00:01]} Kh2 {[%emt 0:00:00] Weighted Error Value: White=0.66/Black=0.17 (very precise)} 0-1

[Event "ChessKid Cup Div-II 2023"]
[Site "Online"]
[Date "2023.05.24"]
[Round "52.2"]
[White "Meier, Georg"]
[Black "Le, Quang Liem"]
[Result "0-1"]
[ECO "A49"]
[WhiteElo "2614"]
[BlackElo "2728"]
[Annotator "TA"]
[PlyCount "92"]
[EventDate "2023.05.21"]
[EventType "k.o."]
[EventCountry "NET"]
[SourceTitle "playchess.com"]
[Source "ChessBase"]
[SourceQuality "1"]
[TimeControl "900+3"]

{[%evp 20,92,3,0,7,0,0,0,0,-2,5,0,20,7,54,29,73,77,68,87,67,81,89,94,105,63,104,93,99,58,117,111,122,99,208,194,176,94,82,7,39,45,42,0,56,0,0,0,149,149,158,0,0,0,0,0,0,0,0,0,0,0,31,29,29,29,29968,0,15,0,0,-606,-606,-606,-590]} 1. Nf3 {[%emt 0:00:03]} d5 {[%emt 0:00:05]} 2. g3 {[%emt 0:00:02]} g6 {[%emt 0:00:01]} 3. Bg2 {[%emt 0:00:01]} Bg7 {[%emt 0:00:01]} 4. d4 {[%emt 0:00:00]} c6 {[%emt 0:00:01]} 5. O-O {[%emt 0:00:01]} Nf6 {[%emt 0:00:01]} 6. b3 {[%emt 0:00:01]} O-O {[%emt 0:00:02]} 7. c4 {[%emt 0:00:01]} dxc4 {[%emt 0:00:01]} 8. bxc4 {[%emt 0:00:01]} c5 {[%emt 0:00:00]} 9. Bb2 {[%emt 0:00:01]} cxd4 {[%emt 0:00:03]} 10. Nxd4 {[%emt 0:00:01]} Qb6 {[%emt 0:00:11]} 11. Qc1 {[%emt 0:00:02]} Bd7 {[%emt 0:00:16] A49: 1 d4 Nf6 2 Nf3 g6 3 g3: Anti-King's Indian systems.} 12. Nd2 {[%emt 0:00:19]} Nc6 {[%emt 0:00:17]} 13. e3 {[%emt 0:00:02][%cal Be2e3,Be3d4,Bd4d5][%mdl 32] 13.Nc2 is the modern continuation.} Rac8 {[%emt 0:00:16] The position is equal.} 14. Rb1 {[%emt 0:00:11]} Qa6 {[%emt 0:00:11]} 15. Bc3 {[%emt 0:00:01] [#]} b6 $146 {[%emt 0:00:30]} ({Predecessor:} 15... Rfd8 16. Rb3 b6 17. Qb2 Nxd4 18. Bxd4 Bc6 19. Bxc6 Rxc6 {½-½ Banusz,T (2628)-Kantor,G (2530) HUN-ch rapid 2020 (11)}) 16. Rb3 {[%emt 0:00:01]} Nxd4 {[%emt 0:01:42]} (16... Qxa2 $2 17. Ra3 $18) (16... Rfd8 $11 {might be stronger.}) 17. exd4 $14 {[%emt 0:01:08]} Bc6 {[%emt 0:00:02]} (17... Qxa2 $2 18. Ra3 $18) 18. Ra3 {[%emt 0:02:46]} Qb7 {[%emt 0:00:07]} 19. d5 $1 $36 {[%emt 0:00:01][%mdl 2048] Black is under strong pressure.} Bd7 {[%emt 0:00:11]} 20. Re1 {[%emt 0:00:06]} Rfe8 {[%emt 0:00:04]} 21. Qb2 {[%emt 0:00:21]} Qb8 {[%emt 0:00:39]} 22. Bf3 {[%emt 0:01:54]} h5 {[%emt 0:02:36]} 23. Be5 {[%emt 0:00:20]} Qb7 {[%emt 0:00:01]} 24. Rae3 {[%emt 0:00:19]} Bh6 {[%emt 0:00:57]} (24... Bh3 $14) 25. R3e2 $1 $16 {[%emt 0:00:01] d6 would be deadly.} Nh7 {[%emt 0:00:20]} 26. h4 {[%emt 0:00:13]} Bg4 {[%emt 0:00:31]} (26... Bf5 $16 {was necessary.}) 27. Bxg4 $18 {[%emt 0:01:14]} hxg4 {[%emt 0:00:00]} 28. Re4 {[%emt 0:00:55]} (28. Qb4 $18) 28... Qd7 $16 {[%emt 0:00:15]} 29. Nb3 {[%emt 0:00:52]} (29. Qb4 $16) 29... b5 {[%emt 0:01:45] Black is weak on the dark squares} (29... f5 $5 {[%cal Rf5e4]} 30. Rd4 Nf8 $11) 30. cxb5 {[%emt 0:00:57]} Qxb5 {[%emt 0:00:00]} 31. Rxg4 {[%emt 0:00:56]} (31. Qe2 $5 {[%cal Re2b5]} Qxd5 32. Rxg4 $14 (32. Qxg4 Red8 $14)) 31... Qxd5 {[%emt 0:00:04]} (31... Nf6 $11 32. Bxf6 {[%mdl 64] Remove Defender} exf6 33. Rxe8+ Rxe8) 32. h5 {[%emt 0:00:14]} (32. Qe2 $14) 32... Ng5 $1 $11 {[%emt 0:00:17] Threatens to win with ...Nf3+.} 33. Nd4 {[%emt 0:00:54]} f6 {[%emt 0:00:56] [#]} (33... gxh5 $11 {remains equal.} 34. Rh4 f6) 34. Qb1 $1 $16 {[%emt 0:00:04]} f5 {[%emt 0:00:34] [#]} (34... fxe5 $2 35. Qxg6+ Bg7 36. Qxg5 $18) 35. f4 $2 {[%emt 0:00:56]} Rb8 $1 $11 {[%emt 0:00:41][%mdl 64] Deflection. Some like it hot} (35... Nh3+ $2 36. Kh2 $18) 36. Bxb8 {[%emt 0:00:53]} Qxd4+ {[%emt 0:00:02]} (36... fxg4 $2 37. Qxg6+ (37. Bxa7 Nh3+ 38. Kh2 Qxh5 $14) 37... Bg7 38. Qxe8+ $18) 37. Kf1 {[%emt 0:00:05]} Qc4+ {[%emt 0:00:56]} 38. Re2 {[%emt 0:00:03]} Qd5 {[%emt 0:00:01]} 39. Rh4 {[%emt 0:00:37]} (39. Rxg5 $2 Qh1+ 40. Kf2 Qxb1 $19) (39. Kg1 {is more complex.} Qf3 40. Rxg5 Bxg5 41. Qb3+) 39... Nf3 {[%emt 0:01:30]} 40. Rh3 {[%emt 0:00:01]} Nd2+ {[%emt 0:00:29] [#]} (40... g5 $5 {[%cal Rg5g4]} 41. g4 (41. Bxa7 g4 $17) 41... Nd2+ 42. Rxd2 Qxd2 $11) 41. Rxd2 $1 {[%emt 0:00:02]} Qxd2 {[%emt 0:00:00]} 42. hxg6 {[%emt 0:00:07]} Kg7 $2 {[%emt 0:00:11][%mdl 8192]} (42... Qd5 $11) 43. Qb3 $2 {[%emt 0:00:08]} (43. Bxa7 $2 Rc8 $19) (43. Be5+ {mates} Kxg6 44. g4 Rf8 45. gxf5+ Kf7 46. Qb3+ Ke8 47. Rxh6 Kd7 48. Qb5+ Kd8 49. Qb8+ {[%mdl 64] Skewer, Double Attack} Kd7 50. Qxf8) 43... Qc1+ {[%emt 0:00:11]} 44. Ke2 {[%emt 0:00:04] Qf7+ would kill now.} e6 {[%emt 0:00:11]} 45. Qa4 $2 {[%emt 0:00:12][%mdl 8192] [#]} (45. Bxa7 $11 Kxg6 46. Kf2) 45... Rd8 $1 $19 {[%emt 0:00:03] ( -> ...Rd2+)} (45... Rxb8 {is a self mate.} 46. Qd7+ (46. Qxa7+ Kxg6 47. Qxb8 Qc2+ 48. Kf3 Qc3+ 49. Kg2 Qd2+ 50. Kh1 Qe1+ 51. Kh2 Qf2+ 52. Kh1 Qe1+ 53. Kh2 Qf2+ 54. Kh1 Qe1+ $11) 46... Kxg6 47. Qxe6+ Kg7 48. Qxh6+ (48. Rxh6 {leads to mate.} Rb2+ 49. Kf3 Qd1+ 50. Ke3 Qd2+ 51. Kf3 Qf2#) 48... Kf7 49. Qh7+ {[%mdl 64] Skewer, Double Attack} Ke6 50. Rh6+ (50. Qxa7 $2 Rb2+ 51. Kf3 Qc6+ 52. Ke3 Qe4#) 50... Kd5 51. Qd7+ Kc5 52. Qc7+ {[%mdl 64] Skewer, Double Attack} Kb5 53. Qxb8+) 46. Be5+ {[%emt 0:00:02]} Kxg6 {[%emt 0:00:01] An entertaining game by Le.   Weighted Error Value: White=0.54/Black=0.37} 0-1

[Event "ChessKid Cup Div-II 2023"]
[Site "Online"]
[Date "2023.05.24"]
[Round "52.2"]
[White "Le, Tuan Minh"]
[Black "Anton Guijarro, David"]
[Result "1-0"]
[ECO "B06"]
[WhiteElo "2542"]
[BlackElo "2690"]
[Annotator "TA"]
[PlyCount "73"]
[EventDate "2023.05.21"]
[EventType "k.o."]
[EventCountry "NET"]
[SourceTitle "playchess.com"]
[Source "ChessBase"]
[SourceQuality "1"]
[TimeControl "900+3"]

{[%evp 9,72,38,43,6,6,7,24,31,29,39,43,54,42,22,38,20,29,26,29,23,37,12,33,-2,35,-3,-6,-41,-10,-14,-22,-24,0,0,0,0,0,0,0,0,66,55,132,83,88,31,31,0,0,0,0,0,0,0,0,0,0,0,29996,29997,29997,29998,29998,29999,29999]} 1. d4 {[%emt 0:00:07]} d6 {[%emt 0:00:07]} 2. e4 {[%emt 0:00:05]} g6 {[%emt 0:00:04]} 3. Nf3 {[%emt 0:00:18]} Bg7 {[%emt 0:00:03]} 4. Bc4 {[%emt 0:00:01]} e6 {[%emt 0:00:05]} 5. Bb3 {[%emt 0:00:03]} Nf6 {[%emt 0:00:06]} 6. Nbd2 {[%emt 0:00:04] B06: Modern Defence.} O-O {[%emt 0:00:16]} 7. O-O {[%emt 0:00:01]} Nc6 {[%emt 0:00:10]} 8. c3 {[%emt 0:00:08] White has an edge.} a5 {[%emt 0:00:54]} 9. Re1 {[%emt 0:00:15] [#]} b5 $146 {[%emt 0:00:28]} ({Predecessor:} 9... e5 10. Nf1 exd4 11. cxd4 Bg4 12. d5 Ne5 13. N1d2 Nd3 14. Re3 Nxc1 15. Rxc1 Bh6 {0-1 Dragomirescu,R (2337)-Anton Guijarro,D (2679) Titled Tuesday intern op 12th Jan blitz 2021 (8)}) 10. a4 {[%emt 0:00:02]} b4 {[%emt 0:00:01]} 11. Nf1 {[%emt 0:00:21]} Rb8 {[%emt 0:00:20]} 12. Ng3 {[%emt 0:00:25]} bxc3 {[%emt 0:00:29]} 13. bxc3 {[%emt 0:00:02]} Ba6 {[%emt 0:00:09]} 14. h3 {[%emt 0:00:19]} e5 {[%emt 0:01:08]} 15. Be3 {[%emt 0:00:51]} exd4 {[%emt 0:00:20]} 16. Nxd4 {[%emt 0:00:02]} (16. cxd4 $5 {[%cal Ra1c1]} Re8 17. Rc1 $11) 16... Qd7 {[%emt 0:00:43]} 17. Nxc6 {[%emt 0:00:59]} Qxc6 {[%emt 0:00:02]} 18. Bd4 {[%emt 0:00:00][%cal Od1f3]} Bc4 {[%emt 0:01:33]} 19. Bxc4 {[%emt 0:00:21]} Qxc4 {[%emt 0:00:02]} 20. e5 {[%emt 0:01:02]} Nd5 {[%emt 0:01:13] Hoping for ...c5.} 21. exd6 $1 {[%emt 0:00:25]} Bxd4 {[%emt 0:00:04]} (21... Nxc3 $2 22. Bxc3 Bxc3 23. Rc1 $18) 22. cxd4 {[%emt 0:00:52] And now Rc1 would win.} cxd6 {[%emt 0:00:02]} 23. Ne4 {[%emt 0:00:00]} Rfd8 {[%emt 0:00:37]} 24. Qd2 {[%emt 0:00:20]} Kg7 {[%emt 0:02:00]} (24... Qb4 $11) 25. Qxa5 $14 {[%emt 0:01:02]} Nb4 {[%emt 0:00:10] [#]} (25... Ra8 $14 26. Qb5 Qxb5 27. axb5 Rab8) 26. Nxd6 $1 {[%emt 0:03:49][%mdl 512]} Qxd4 $16 {[%emt 0:00:02] White must now prevent ...Nd3.} 27. Rad1 {[%emt 0:00:29] White is more active.} (27. Nb5 $16 Qc5 28. Rec1) 27... Nd3 $14 {[%emt 0:01:12]} 28. Rxd3 {[%emt 0:00:43][%mdl 64] Deflection} Qxd3 {[%emt 0:00:02]} 29. Qe5+ {[%emt 0:00:00]} Kg8 {[%emt 0:00:27]} 30. Nxf7 {[%emt 0:00:15][%mdl 64] Decoy} Kxf7 {[%emt 0:00:11]} 31. Qe7+ {[%emt 0:00:02]} Kg8 {[%emt 0:00:02]} 32. Qe6+ {[%emt 0:00:00]} Kg7 {[%emt 0:00:02]} 33. Qe7+ {[%emt 0:00:01]} Kh6 $2 {[%emt 0:00:01][%mdl 8192]} (33... Kh8 $11 34. Qf6+ Kg8 35. Qe6+ Kh8 36. Qf6+ Kg8 37. Qe6+) 34. Qh4+ {[%emt 0:00:01] White mates.} Kg7 {[%emt 0:00:01]} 35. Re7+ {[%emt 0:00:01]} Kg8 {[%emt 0:00:02]} 36. Qxh7+ {[%emt 0:00:01]} Kf8 {[%emt 0:00:00]} 37. Qg7# {[%emt 0:00:01] Artfully played by Le.   Weighted Error Value: White=0.13 (very precise) /Black=0.38} 1-0

[Event "ChessKid Cup Div-II 2023"]
[Site "Online"]
[Date "2023.05.24"]
[Round "52.3"]
[White "Alekseenko, Kirill"]
[Black "Andreikin, Dmitry"]
[Result "0-1"]
[ECO "B12"]
[WhiteElo "2686"]
[BlackElo "2729"]
[Annotator "TA"]
[PlyCount "48"]
[EventDate "2023.05.21"]
[EventType "k.o."]
[EventCountry "NET"]
[SourceTitle "playchess.com"]
[Source "ChessBase"]
[SourceQuality "1"]
[TimeControl "900+3"]

{[%evp 9,48,24,29,27,23,18,17,-15,0,-28,-33,-19,-10,-21,0,-7,14,0,0,0,0,-2,-1,-27,99,83,84,80,79,93,97,35,38,46,29,0,0,-352,-352,-608,-578]} 1. e4 {[%emt 0:00:13]} c6 {[%emt 0:03:12]} 2. d4 {[%emt 0:00:07]} d5 {[%emt 0:00:04]} 3. e5 {[%emt 0:00:03]} Bf5 {[%emt 0:00:07]} 4. Nf3 {[%emt 0:00:11]} e6 {[%emt 0:00:04]} 5. Be2 {[%emt 0:00:06]} Ne7 {[%emt 0:00:05][%cal Oc6c5]} 6. c3 {[%emt 0:00:15] B12: Caro-Kann: Advance Variation.} Nd7 {[%emt 0:00:07]} 7. Nbd2 {[%emt 0:00:13]} c5 {[%emt 0:00:23]} 8. Nb3 {[%emt 0:01:05] The position is equal.} Nc6 {[%emt 0:00:11]} 9. Be3 {[%emt 0:00:25][%cal Rd4c5]} c4 {[%emt 0:00:10]} 10. Nbd2 {[%emt 0:00:06]} b5 {[%emt 0:00:06]} 11. O-O {[%emt 0:00:14]} Be7 {[%emt 0:00:04] [#]} 12. Ne1 $146 {[%emt 0:00:12]} ({Predecessor:} 12. a3 a5 13. Ne1 g5 14. f4 gxf4 15. Bxf4 Qb6 16. Kh1 O-O-O 17. b3 Qa7 18. a4 bxa4 19. bxc4 dxc4 20. Qxa4 {1-0 Das,A (2460)-Kamarunsalehin,A (1946) Kuala Lumpur op 2014 (4)}) 12... b4 {[%emt 0:01:35]} 13. g4 {[%emt 0:00:26]} Bg6 {[%emt 0:00:04]} 14. f4 {[%emt 0:00:03][%cal Bf2f4,Bf4f5][%mdl 32] And now f5 would win.} bxc3 {[%emt 0:00:04]} 15. bxc3 {[%emt 0:00:05][%cal Od2c4]} Qa5 {[%emt 0:00:47]} 16. Rc1 {[%emt 0:00:52] f5 would be deadly.} Ba3 {[%emt 0:00:36] [#]} (16... Qxa2 $2 17. f5 $18) (16... f5 $11 {remains equal.}) 17. f5 $1 $16 {[%emt 0:00:13] Strongly threatening Rc2.} Bxc1 {[%emt 0:00:04]} 18. Qxc1 {[%emt 0:00:12]} Qxa2 {[%emt 0:00:04][%cal Oa8b8]} ({Less strong is} 18... exf5 19. gxf5 Bxf5 20. Rxf5 $18) 19. fxg6 {[%emt 0:00:50]} hxg6 {[%emt 0:00:03]} 20. Nef3 {[%emt 0:00:05]} (20. Rf2 $16) 20... Rb8 $1 $14 {[%emt 0:00:14][%cal Ba8b8,Bb8b2,Bb2d2][%mdl 32]} 21. Ng5 {[%emt 0:01:51]} Nd8 {[%emt 0:00:03]} 22. Qe1 {[%emt 0:00:25][%cal Oe2c4]} (22. Bd1 $5 {[%cal Rf1f2]}) 22... Rb2 {[%emt 0:01:14]} 23. Qf2 $2 {[%emt 0:01:17][%mdl 8192]} (23. h4 $11 {and White is okay.}) 23... Rxd2 $19 {[%emt 0:00:20]} (23... f6 24. exf6 gxf6 25. Bxc4 dxc4 26. Nge4 $11) 24. Nxf7 $2 {[%emt 0:00:11] [#]} (24. Bxd2 Qxd2 25. Nf3 (25. Nxf7 $2 {perishes.} O-O $19) 25... Qxc3 26. Bd1) 24... O-O $1 {[%emt 0:00:11] Weighted Error Value: White=0.71/Black=0.13 (very precise)} 0-1